[Event "GrandPrix_29.05"]
[Site "Chess.com"]
[Date "2020.05.29"]
[Round "6"]
[White "BlackBoarder"]
[Black "MaxVavulin"]
[Result "1-0"]
[WhiteElo "2135"]
[BlackElo "1972"]
[TimeControl "600+2"]
[EndTime "12:03:43 PDT"]
[Termination "BlackBoarder won by resignation"]

1. e4 {[%clk 0:10:01.1]} 1... e5 {[%clk 0:09:57.9]} 2. Nf3 {[%clk 0:10:00.9]}
2... Nc6 {[%clk 0:09:58.4]} 3. d4 {[%clk 0:10:00.8]} 3... exd4 {[%clk
0:09:58.8]} 4. Bc4 {[%clk 0:10:01.6]} 4... Nf6 {[%clk 0:09:58.9]} 5. O-O {[%clk
0:10:02.2]} 5... Nxe4 {[%clk 0:09:58]} 6. Re1 {[%clk 0:10:03.4]} 6... d5 {[%clk
0:09:59.6]} 7. Bxd5 {[%clk 0:10:04.4]} 7... Qxd5 {[%clk 0:10:01.3]} 8. Nc3
{[%clk 0:10:05.7]} 8... Qa5 {[%clk 0:10:03]} 9. Nxe4 {[%clk 0:10:06.6]} 9... Be6
{[%clk 0:10:04.1]} 10. Neg5 {[%clk 0:10:07.7]} 10... O-O-O {[%clk 0:09:38.8]}
11. Nxe6 {[%clk 0:10:07.6]} 11... fxe6 {[%clk 0:09:39.4]} 12. Rxe6 {[%clk
0:10:09.5]} 12... Bd6 {[%clk 0:09:36]} 13. Bg5 {[%clk 0:10:10.4]} 13... Rdf8
{[%clk 0:09:28]} 14. Qe2 {[%clk 0:10:10.2]} 14... a6 {[%clk 0:08:18.2]} 15. Bd2
{[%clk 0:10:03]} 15... Qf5 {[%clk 0:07:57.3]} 16. Re4 {[%clk 0:10:01.8]} 16...
Qf6 {[%clk 0:07:07.1]} 17. Re1 {[%clk 0:09:45]} 17... h6 {[%clk 0:06:46.6]} 18.
h3 {[%clk 0:09:28.3]} 18... Rd8 {[%clk 0:06:44]} 19. Qd3 {[%clk 0:09:04.8]}
19... Rhf8 {[%clk 0:06:26.5]} 20. a3 {[%clk 0:08:49.5]} 20... Qf7 {[%clk
0:05:32.8]} 21. b4 {[%clk 0:08:34.1]} 21... Kb8 {[%clk 0:05:00.6]} 22. b5 {[%clk
0:07:40.4]} 22... axb5 {[%clk 0:04:59.5]} 23. Qxb5 {[%clk 0:07:42.3]} 23... Qf5
{[%clk 0:04:54.7]} 24. Qb3 {[%clk 0:07:15.9]} 24... Qc5 {[%clk 0:04:43.9]} 25.
a4 {[%clk 0:07:05.8]} 25... Na5 {[%clk 0:04:32]} 26. Bxa5 {[%clk 0:06:40.5]}
26... Qxa5 {[%clk 0:04:32.1]} 27. Nxd4 {[%clk 0:06:40.1]} 27... Qc5 {[%clk
0:01:58.2]} 28. Rb1 {[%clk 0:05:50.3]} 28... b6 {[%clk 0:01:56.9]} 29. Qe3
{[%clk 0:03:53.6]} 29... Bf4 {[%clk 0:01:05.7]} 30. Qd3 {[%clk 0:02:55.1]} 30...
Be5 {[%clk 0:00:26.9]} 31. Rb5 {[%clk 0:00:27.5]} 31... Rxd4 {[%clk 0:00:26.6]}
32. Rxc5 {[%clk 0:00:28.2]} 32... Rxd3 {[%clk 0:00:27.6]} 33. cxd3 {[%clk
0:00:29.3]} 33... bxc5 {[%clk 0:00:22.2]} 34. Rxe5 {[%clk 0:00:30.4]} 34... Rf4
{[%clk 0:00:18.7]} 35. Rxc5 {[%clk 0:00:17.5]} 35... Rxa4 {[%clk 0:00:19.5]} 36.
Kf1 {[%clk 0:00:19]} 36... Kc8 {[%clk 0:00:07.2]} 37. Rf5 {[%clk 0:00:19.8]}
37... Ra6 {[%clk 0:00:06.2]} 38. Rf7 {[%clk 0:00:20.2]} 38... Rg6 {[%clk
0:00:05.6]} 39. g4 {[%clk 0:00:21.4]} 39... Kb7 {[%clk 0:00:05.6]} 40. Ke2
{[%clk 0:00:22.1]} 40... Kc6 {[%clk 0:00:06.7]} 41. f4 {[%clk 0:00:23.2]} 41...
Re6+ {[%clk 0:00:05.6]} 42. Kf3 {[%clk 0:00:24]} 42... Rd6 {[%clk 0:00:06.5]}
43. Ke4 {[%clk 0:00:14.8]} 43... Re6+ {[%clk 0:00:07.7]} 44. Kf5 {[%clk
0:00:16.1]} 44... Re3 {[%clk 0:00:08.2]} 45. h4 {[%clk 0:00:13.8]} 45... Rxd3
{[%clk 0:00:08.9]} 46. Rxg7 {[%clk 0:00:15.3]} 46... Kd6 {[%clk 0:00:08.1]} 47.
Rg6+ {[%clk 0:00:16]} 47... Ke7 {[%clk 0:00:09.1]} 48. Rxh6 {[%clk 0:00:16]}
48... c5 {[%clk 0:00:10.3]} 49. Rc6 {[%clk 0:00:16.9]} 49... Rc3 {[%clk
0:00:10.8]} 50. h5 {[%clk 0:00:16.9]} 50... Kd7 {[%clk 0:00:11.5]} 51. Ra6
{[%clk 0:00:16.5]} 51... c4 {[%clk 0:00:12.7]} 52. h6 {[%clk 0:00:17.7]} 52...
Rh3 {[%clk 0:00:12]} 53. g5 {[%clk 0:00:17.5]} 53... c3 {[%clk 0:00:11.8]} 54.
Ra4 {[%clk 0:00:17.5]} 54... Kc6 {[%clk 0:00:10]} 55. Rc4+ {[%clk 0:00:18.3]}
55... Kd5 {[%clk 0:00:11]} 56. Rc8 {[%clk 0:00:19.6]} 56... Kd4 {[%clk
0:00:12.2]} 57. Kg6 {[%clk 0:00:19.7]} 57... Kd3 {[%clk 0:00:12.6]} 58. h7
{[%clk 0:00:19.6]} 58... c2 {[%clk 0:00:13.2]} 59. f5 {[%clk 0:00:19]} 59... Kd2
{[%clk 0:00:14.3]} 60. Rxc2+ {[%clk 0:00:19.1]} 60... Kxc2 {[%clk 0:00:15.4]}
61. f6 {[%clk 0:00:20.6]} 61... Kd3 {[%clk 0:00:16.7]} 62. f7 {[%clk 0:00:22]}
1-0

[Event "GrandPrix_29.05"]
[Site "Chess.com"]
[Date "2020.05.29"]
[Round "6"]
[White "Salnaa"]
[Black "Iljin_Timofey"]
[Result "1-0"]
[WhiteElo "2192"]
[BlackElo "2269"]
[TimeControl "600+2"]
[EndTime "12:03:44 PDT"]
[Termination "Salnaa won on time"]

1. d4 {[%clk 0:10:01.9]} 1... d5 {[%clk 0:09:51.4]} 2. c4 {[%clk 0:10:02.9]}
2... e6 {[%clk 0:09:49.6]} 3. Nc3 {[%clk 0:10:03.4]} 3... Bb4 {[%clk 0:09:50.4]}
4. cxd5 {[%clk 0:09:57.9]} 4... exd5 {[%clk 0:09:51.2]} 5. Nf3 {[%clk
0:09:58.5]} 5... Nf6 {[%clk 0:09:52]} 6. Bg5 {[%clk 0:09:26.7]} 6... h6 {[%clk
0:09:52.2]} 7. Bxf6 {[%clk 0:08:46.3]} 7... Qxf6 {[%clk 0:09:54.1]} 8. e3 {[%clk
0:08:47.7]} 8... O-O {[%clk 0:09:53.3]} 9. Qb3 {[%clk 0:08:42.7]} 9... Qb6
{[%clk 0:09:40.2]} 10. Bd3 {[%clk 0:08:27.5]} 10... c6 {[%clk 0:09:38.2]} 11.
O-O {[%clk 0:08:17.8]} 11... Be6 {[%clk 0:09:36]} 12. Na4 {[%clk 0:08:13.9]}
12... Qa5 {[%clk 0:09:33.7]} 13. a3 {[%clk 0:08:11.1]} 13... Bd6 {[%clk
0:09:23.4]} 14. Nc5 {[%clk 0:07:26.4]} 14... Bxc5 {[%clk 0:09:06.1]} 15. dxc5
{[%clk 0:07:28.3]} 15... Nd7 {[%clk 0:09:01]} 16. Qxb7 {[%clk 0:07:16.8]} 16...
Nxc5 {[%clk 0:08:50]} 17. b4 {[%clk 0:06:59.6]} 17... Nxb7 {[%clk 0:08:49.2]}
18. bxa5 {[%clk 0:07:00.8]} 18... Nxa5 {[%clk 0:08:51.1]} 19. Rac1 {[%clk
0:06:39.5]} 19... Rfc8 {[%clk 0:08:41.5]} 20. Rc5 {[%clk 0:06:11.5]} 20... Nb3
{[%clk 0:08:21.8]} 21. Rc3 {[%clk 0:06:11]} 21... Rab8 {[%clk 0:08:12.8]} 22.
Ba6 {[%clk 0:05:43.8]} 22... Rc7 {[%clk 0:08:00.1]} 23. Rb1 {[%clk 0:05:42]}
23... Rb6 {[%clk 0:08:00]} 24. Rbxb3 {[%clk 0:05:00.1]} 24... Rxa6 {[%clk
0:06:48.7]} 25. Rc5 {[%clk 0:04:50.2]} 25... Rb6 {[%clk 0:06:11.4]} 26. Nd4
{[%clk 0:04:46.8]} 26... Rxb3 {[%clk 0:05:54.8]} 27. Nxb3 {[%clk 0:04:47.7]}
27... Rb7 {[%clk 0:05:56.7]} 28. Nc1 {[%clk 0:04:32.9]} 28... Bd7 {[%clk
0:05:41.7]} 29. h3 {[%clk 0:04:22.3]} 29... Kf8 {[%clk 0:05:43.6]} 30. Ne2
{[%clk 0:03:46.6]} 30... Ke7 {[%clk 0:05:31.8]} 31. Nd4 {[%clk 0:03:44.3]} 31...
Kd6 {[%clk 0:05:14.4]} 32. Ra5 {[%clk 0:03:43.7]} 32... c5 {[%clk 0:05:06.2]}
33. Ne2 {[%clk 0:03:36.6]} 33... Rb1+ {[%clk 0:04:31.5]} 34. Kh2 {[%clk
0:03:35.8]} 34... Rb2 {[%clk 0:04:33.4]} 35. Nc3 {[%clk 0:02:55.8]} 35... Bc6
{[%clk 0:04:33.8]} 36. Ra6 {[%clk 0:02:46.1]} 36... d4 {[%clk 0:04:14.4]} 37.
exd4 {[%clk 0:02:39.5]} 37... cxd4 {[%clk 0:04:16.3]} 38. Ne4+ {[%clk
0:02:21.9]} 38... Kd5 {[%clk 0:04:17.2]} 39. f3 {[%clk 0:02:22.9]} 39... f5
{[%clk 0:04:14.2]} 40. Ra5+ {[%clk 0:02:19.2]} 40... Bb5 {[%clk 0:04:02.4]} 41.
Ng3 {[%clk 0:02:13.9]} 41... Kc6 {[%clk 0:03:54.1]} 42. Rxa7 {[%clk 0:01:58]}
42... d3 {[%clk 0:03:47.2]} 43. Nxf5 {[%clk 0:01:58.4]} 43... d2 {[%clk
0:03:46.7]} 44. Ne3 {[%clk 0:01:57.6]} 44... Rb3 {[%clk 0:03:45.9]} 45. Nd1
{[%clk 0:01:55.1]} 45... Be2 {[%clk 0:03:46.2]} 46. Nf2 {[%clk 0:01:50.8]} 46...
Rb1 {[%clk 0:02:51.4]} 47. Ra8 {[%clk 0:01:41]} 47... d1=Q {[%clk 0:02:07.3]}
48. Nxd1 {[%clk 0:01:37.7]} 48... Bxd1 {[%clk 0:02:09.2]} 49. Ra7 {[%clk
0:01:19.9]} 49... Rb7 {[%clk 0:01:51.6]} 50. Rxb7 {[%clk 0:01:12.4]} 50... Kxb7
{[%clk 0:01:53.5]} 51. Kg3 {[%clk 0:01:14]} 51... Kc6 {[%clk 0:01:54.4]} 52. Kf4
{[%clk 0:01:05.1]} 52... Kd5 {[%clk 0:01:56.3]} 53. h4 {[%clk 0:01:00.2]} 53...
Bc2 {[%clk 0:01:44.5]} 54. g4 {[%clk 0:00:58.4]} 54... Kd4 {[%clk 0:01:30.6]}
55. h5 {[%clk 0:00:40.9]} 55... Kd5 {[%clk 0:01:25.6]} 56. g5 {[%clk 0:00:38.4]}
56... Ke6 {[%clk 0:01:22.4]} 57. gxh6 {[%clk 0:00:18.8]} 1-0

[Event "GrandPrix_29.05"]
[Site "Chess.com"]
[Date "2020.05.29"]
[Round "6"]
[White "Meri-Arabidze"]
[Black "Natalya_Buksa"]
[Result "0-1"]
[WhiteElo "1952"]
[BlackElo "2112"]
[TimeControl "600+2"]
[EndTime "12:03:46 PDT"]
[Termination "Natalya_Buksa won on time"]

1. d4 {[%clk 0:10:01.9]} 1... d5 {[%clk 0:09:55.4]} 2. c4 {[%clk 0:10:01.8]}
2... e6 {[%clk 0:09:55.8]} 3. Nf3 {[%clk 0:10:02.7]} 3... Nf6 {[%clk 0:09:56.6]}
4. Nc3 {[%clk 0:10:03.1]} 4... Nbd7 {[%clk 0:09:57]} 5. Bg5 {[%clk 0:09:55.2]}
5... Be7 {[%clk 0:09:46.4]} 6. e3 {[%clk 0:09:55.2]} 6... h6 {[%clk 0:09:47.3]}
7. Bh4 {[%clk 0:09:55.2]} 7... O-O {[%clk 0:09:47.2]} 8. Rc1 {[%clk 0:09:41.7]}
8... c5 {[%clk 0:09:46.6]} 9. cxd5 {[%clk 0:09:41.6]} 9... Nxd5 {[%clk
0:09:46.4]} 10. Bxe7 {[%clk 0:09:41.8]} 10... Nxe7 {[%clk 0:09:46.8]} 11. Bd3
{[%clk 0:09:18.8]} 11... b6 {[%clk 0:09:39.2]} 12. Be4 {[%clk 0:09:14.8]} 12...
Rb8 {[%clk 0:09:39.3]} 13. O-O {[%clk 0:09:11]} 13... Bb7 {[%clk 0:09:29.5]} 14.
Bxb7 {[%clk 0:08:08.2]} 14... Rxb7 {[%clk 0:09:31.4]} 15. Nb5 {[%clk 0:08:08.5]}
15... Nf6 {[%clk 0:08:20.9]} 16. Qe2 {[%clk 0:05:28.9]} 16... cxd4 {[%clk
0:07:49.4]} 17. Rfd1 {[%clk 0:05:22.3]} 17... Rd7 {[%clk 0:07:27]} 18. Nbxd4
{[%clk 0:05:09.6]} 18... Qb8 {[%clk 0:07:17.9]} 19. h3 {[%clk 0:04:31.5]} 19...
Rfd8 {[%clk 0:07:16.9]} 20. Nb5 {[%clk 0:04:26.4]} 20... Rxd1+ {[%clk
0:05:23.8]} 21. Rxd1 {[%clk 0:04:28.3]} 21... a6 {[%clk 0:05:24.7]} 22. Nc3
{[%clk 0:04:19.2]} 22... b5 {[%clk 0:05:22.2]} 23. a3 {[%clk 0:04:07.1]} 23...
Ned5 {[%clk 0:05:17.4]} 24. Nxd5 {[%clk 0:04:04]} 24... Rxd5 {[%clk 0:05:17.8]}
25. Rxd5 {[%clk 0:03:56.7]} 25... Nxd5 {[%clk 0:05:16.6]} 26. Qc2 {[%clk
0:03:56.2]} 26... Qc7 {[%clk 0:04:54]} 27. Qxc7 {[%clk 0:03:30.3]} 27... Nxc7
{[%clk 0:04:55.9]} 28. Kf1 {[%clk 0:03:14.5]} 28... Kf8 {[%clk 0:04:56.5]} 29.
Ke2 {[%clk 0:03:10]} 29... Ke7 {[%clk 0:04:57.8]} 30. Ne5 {[%clk 0:03:07.4]}
30... f6 {[%clk 0:04:52.1]} 31. Nd3 {[%clk 0:03:06.6]} 31... Kd6 {[%clk
0:04:48.8]} 32. Kd2 {[%clk 0:02:46.5]} 32... a5 {[%clk 0:04:19.2]} 33. Nf4
{[%clk 0:02:33.9]} 33... Kc5 {[%clk 0:03:36]} 34. Nh5 {[%clk 0:02:30.8]} 34...
Ne8 {[%clk 0:03:36.5]} 35. Kc3 {[%clk 0:02:28]} 35... e5 {[%clk 0:03:23.4]} 36.
e4 {[%clk 0:02:06.6]} 36... g6 {[%clk 0:03:24]} 37. b4+ {[%clk 0:02:00.9]} 37...
Kb6 {[%clk 0:02:36.8]} 38. Ng3 {[%clk 0:01:59.8]} 38... Nd6 {[%clk 0:02:33.6]}
39. bxa5+ {[%clk 0:01:41.8]} 39... Kxa5 {[%clk 0:02:34.5]} 40. Kb3 {[%clk
0:01:43.1]} 40... Nc4 {[%clk 0:02:31.9]} 41. Ka2 {[%clk 0:01:01.2]} 41... b4
{[%clk 0:00:59.4]} 42. axb4+ {[%clk 0:01:01.1]} 42... Kxb4 {[%clk 0:01:01.3]}
43. Ne2 {[%clk 0:01:02.4]} 43... h5 {[%clk 0:00:59]} 44. h4 {[%clk 0:00:42]}
44... Nd2 {[%clk 0:00:57]} 45. f3 {[%clk 0:00:39.9]} 45... Nc4 {[%clk
0:00:45.2]} 46. Kb1 {[%clk 0:00:31.8]} 46... Ne3 {[%clk 0:00:44.3]} 47. g3
{[%clk 0:00:31.1]} 47... Kc4 {[%clk 0:00:45.7]} 48. Kb2 {[%clk 0:00:21.5]} 48...
Kd3 {[%clk 0:00:36.8]} 49. Nc1+ {[%clk 0:00:09.3]} 49... Kd2 {[%clk 0:00:35.4]}
50. Nb3+ {[%clk 0:00:09.5]} 50... Ke2 {[%clk 0:00:35.8]} 51. f4 {[%clk
0:00:10.4]} 51... Kf3 {[%clk 0:00:35.5]} 52. fxe5 {[%clk 0:00:10]} 52... fxe5
{[%clk 0:00:36.4]} 53. Nc5 {[%clk 0:00:11.6]} 53... Kxg3 {[%clk 0:00:35.3]} 54.
Nd7 {[%clk 0:00:11.6]} 54... Ng4 {[%clk 0:00:35.7]} 55. Nf8 {[%clk 0:00:11.6]}
55... Kxh4 {[%clk 0:00:35.9]} 56. Nxg6+ {[%clk 0:00:12.6]} 56... Kg3 {[%clk
0:00:37.2]} 57. Ne7 {[%clk 0:00:09.2]} 57... Kf4 {[%clk 0:00:36.2]} 58. Kc3
{[%clk 0:00:07.2]} 58... Kxe4 {[%clk 0:00:36.5]} 59. Kd2 {[%clk 0:00:08.4]}
59... Kf3 {[%clk 0:00:36.8]} 60. Nf5 {[%clk 0:00:07.9]} 60... e4 {[%clk
0:00:36.1]} 61. Nh4+ {[%clk 0:00:06.6]} 61... Kf2 {[%clk 0:00:36.6]} 62. Nf5
{[%clk 0:00:03]} 62... e3+ {[%clk 0:00:37.7]} 0-1

[Event "GrandPrix_29.05"]
[Site "Chess.com"]
[Date "2020.05.29"]
[Round "6"]
[White "Murad_Ibrahimli"]
[Black "OparinGrigoriy"]
[Result "1/2-1/2"]
[WhiteElo "2622"]
[BlackElo "2530"]
[TimeControl "600+2"]
[EndTime "12:03:49 PDT"]
[Termination "Game drawn - insufficient material"]

1. d4 {[%clk 0:10:01.9]} 1... Nf6 {[%clk 0:09:59.8]} 2. c4 {[%clk 0:10:00.6]}
2... e6 {[%clk 0:10:01]} 3. Nf3 {[%clk 0:09:59.2]} 3... Bb4+ {[%clk 0:10:01.4]}
4. Bd2 {[%clk 0:09:58.2]} 4... a5 {[%clk 0:10:02.2]} 5. Qc2 {[%clk 0:09:57.6]}
5... d5 {[%clk 0:10:02]} 6. g3 {[%clk 0:09:56.1]} 6... O-O {[%clk 0:10:03.3]} 7.
Bg2 {[%clk 0:09:55.3]} 7... c6 {[%clk 0:10:04.8]} 8. O-O {[%clk 0:09:55.8]} 8...
Nbd7 {[%clk 0:10:06.5]} 9. Bf4 {[%clk 0:09:55.4]} 9... Nh5 {[%clk 0:10:03.7]}
10. Bc1 {[%clk 0:09:53.4]} 10... a4 {[%clk 0:09:53.7]} 11. Nc3 {[%clk 0:09:43]}
11... a3 {[%clk 0:09:48.1]} 12. bxa3 {[%clk 0:09:41.5]} 12... Bxa3 {[%clk
0:09:46.7]} 13. Qb3 {[%clk 0:09:35.5]} 13... Qa5 {[%clk 0:09:35.8]} 14. e4
{[%clk 0:09:11.8]} 14... dxc4 {[%clk 0:07:13.3]} 15. Qxc4 {[%clk 0:09:09.8]}
15... b5 {[%clk 0:07:12.5]} 16. Qxc6 {[%clk 0:08:45.1]} 16... Ra6 {[%clk
0:04:46.1]} 17. Qxb5 {[%clk 0:08:40.9]} 17... Qxc3 {[%clk 0:04:45.7]} 18. Bd2
{[%clk 0:08:35.7]} 18... Qc6 {[%clk 0:04:35]} 19. Qxh5 {[%clk 0:08:32.7]} 19...
Qxe4 {[%clk 0:04:32.4]} 20. Ng5 {[%clk 0:07:59.1]} 20... Qg6 {[%clk 0:04:31.1]}
21. Qxg6 {[%clk 0:06:33.8]} 21... hxg6 {[%clk 0:04:33]} 22. Rfb1 {[%clk
0:05:46.3]} 22... Nf6 {[%clk 0:04:29.3]} 23. Ne4 {[%clk 0:05:18.9]} 23... Nxe4
{[%clk 0:04:21.5]} 24. Bxe4 {[%clk 0:05:17.6]} 24... Bd7 {[%clk 0:04:19.4]} 25.
Rb3 {[%clk 0:04:30.8]} 25... Bd6 {[%clk 0:03:46.2]} 26. d5 {[%clk 0:04:03.1]}
26... Re8 {[%clk 0:03:01.3]} 27. Bc3 {[%clk 0:02:58.5]} 27... Rc8 {[%clk
0:02:35.6]} 28. Bb2 {[%clk 0:01:46.1]} 28... Ra4 {[%clk 0:02:10.1]} 29. Bf3
{[%clk 0:01:37.5]} 29... Rc2 {[%clk 0:01:44.6]} 30. a3 {[%clk 0:00:54.5]} 30...
Rd2 {[%clk 0:01:12.4]} 31. Rd1 {[%clk 0:00:48.7]} 31... Rxd1+ {[%clk 0:00:48.6]}
32. Bxd1 {[%clk 0:00:48.6]} 32... Ra5 {[%clk 0:00:49.2]} 33. dxe6 {[%clk
0:00:21.5]} 33... Bxe6 {[%clk 0:00:51.1]} 34. Rd3 {[%clk 0:00:22]} 34... Bc5
{[%clk 0:00:45.6]} 35. a4 {[%clk 0:00:23]} 35... Ra8 {[%clk 0:00:37.5]} 36. Kg2
{[%clk 0:00:22.5]} 36... Bf5 {[%clk 0:00:37.1]} 37. Rd2 {[%clk 0:00:18.7]} 37...
Be4+ {[%clk 0:00:32.5]} 38. f3 {[%clk 0:00:19.6]} 38... Bc6 {[%clk 0:00:30.8]}
39. Bc3 {[%clk 0:00:12.5]} 39... Bxa4 {[%clk 0:00:28.3]} 40. Ra2 {[%clk
0:00:13.9]} 40... Bc6 {[%clk 0:00:25.6]} 41. Rxa8+ {[%clk 0:00:15.2]} 41... Bxa8
{[%clk 0:00:27.5]} 42. h4 {[%clk 0:00:15.6]} 42... Bd5 {[%clk 0:00:27.5]} 43. g4
{[%clk 0:00:15.3]} 43... f5 {[%clk 0:00:27.2]} 44. gxf5 {[%clk 0:00:15]} 44...
gxf5 {[%clk 0:00:29.1]} 45. Be5 {[%clk 0:00:15.7]} 45... Kf7 {[%clk 0:00:30.2]}
46. Kg3 {[%clk 0:00:16.7]} 46... g6 {[%clk 0:00:31.4]} 47. f4 {[%clk 0:00:17.8]}
47... Ke6 {[%clk 0:00:32.4]} 48. h5 {[%clk 0:00:18.7]} 48... gxh5 {[%clk
0:00:30.1]} 49. Bxh5 {[%clk 0:00:20]} 49... Bb4 {[%clk 0:00:31.7]} 50. Bf3
{[%clk 0:00:20.6]} 50... Be1+ {[%clk 0:00:32.2]} 51. Kg2 {[%clk 0:00:22.1]}
51... Be4 {[%clk 0:00:31.1]} 52. Kf1 {[%clk 0:00:21]} 52... Bd2 {[%clk
0:00:30.3]} 53. Be2 {[%clk 0:00:21.9]} 53... Kd5 {[%clk 0:00:31]} 54. Ba6 {[%clk
0:00:22.8]} 54... Bb4 {[%clk 0:00:25.8]} 55. Ke2 {[%clk 0:00:23.5]} 55... Ke6
{[%clk 0:00:26.9]} 56. Bc8+ {[%clk 0:00:23.4]} 56... Kf7 {[%clk 0:00:28]} 57.
Bd7 {[%clk 0:00:23.6]} 57... Bc5 {[%clk 0:00:27.9]} 58. Bc3 {[%clk 0:00:23.5]}
58... Ke7 {[%clk 0:00:25.5]} 59. Bc8 {[%clk 0:00:23]} 59... Bd6 {[%clk 0:00:27]}
60. Be5 {[%clk 0:00:22.9]} 60... Bxe5 {[%clk 0:00:28.3]} 61. fxe5 {[%clk
0:00:23.5]} 61... f4 {[%clk 0:00:30.2]} 62. Kf2 {[%clk 0:00:23.9]} 62... Bd5
{[%clk 0:00:31.8]} 63. Bg4 {[%clk 0:00:24.1]} 63... Be6 {[%clk 0:00:32.7]} 64.
Be2 {[%clk 0:00:23.5]} 64... Bd5 {[%clk 0:00:32.2]} 65. Bg4 {[%clk 0:00:24]}
65... Kf7 {[%clk 0:00:32.8]} 66. Bf5 {[%clk 0:00:24.3]} 66... Kf8 {[%clk
0:00:33.2]} 67. Bg4 {[%clk 0:00:23.2]} 67... Ke7 {[%clk 0:00:34.6]} 68. Bf5
{[%clk 0:00:23.7]} 68... Be6 {[%clk 0:00:35.2]} 69. Kf3 {[%clk 0:00:22.3]} 69...
Bxf5 {[%clk 0:00:36.3]} 70. Kxf4 {[%clk 0:00:23.6]} 70... Ke6 {[%clk 0:00:38.2]}
71. Kg5 {[%clk 0:00:24]} 71... Kxe5 {[%clk 0:00:40.1]} 1/2-1/2

[Event "GrandPrix_29.05"]
[Site "Chess.com"]
[Date "2020.05.29"]
[Round "6"]
[White "szachuspl"]
[Black "Nikame"]
[Result "1-0"]
[WhiteElo "2382"]
[BlackElo "2361"]
[TimeControl "600+2"]
[EndTime "12:03:50 PDT"]
[Termination "szachuspl won by resignation"]

1. d4 {[%clk 0:10:01.9]} 1... d6 {[%clk 0:09:57.9]} 2. c4 {[%clk 0:09:57.6]}
2... e5 {[%clk 0:09:55.9]} 3. Nf3 {[%clk 0:09:58.6]} 3... Nd7 {[%clk 0:09:50.5]}
4. Nc3 {[%clk 0:09:59]} 4... g6 {[%clk 0:09:49.7]} 5. e4 {[%clk 0:09:56.8]} 5...
Bg7 {[%clk 0:09:50.7]} 6. Be2 {[%clk 0:09:57.4]} 6... Nh6 {[%clk 0:09:49.5]} 7.
O-O {[%clk 0:09:51.7]} 7... O-O {[%clk 0:09:47.7]} 8. Re1 {[%clk 0:09:40.4]}
8... f6 {[%clk 0:09:33.2]} 9. dxe5 {[%clk 0:09:18.4]} 9... fxe5 {[%clk
0:08:58.1]} 10. Ng5 {[%clk 0:09:02.9]} 10... Nf6 {[%clk 0:08:51.7]} 11. h3
{[%clk 0:08:34.5]} 11... Nf7 {[%clk 0:08:49.6]} 12. Nxf7 {[%clk 0:08:17.7]}
12... Rxf7 {[%clk 0:08:50.6]} 13. Bg5 {[%clk 0:08:18.8]} 13... h6 {[%clk
0:08:31.7]} 14. Be3 {[%clk 0:08:19.5]} 14... Be6 {[%clk 0:07:48.1]} 15. Qd2
{[%clk 0:08:19.5]} 15... Kh7 {[%clk 0:07:41.6]} 16. Rad1 {[%clk 0:08:19.4]}
16... Qf8 {[%clk 0:07:33.9]} 17. b4 {[%clk 0:08:00.1]} 17... a5 {[%clk 0:07:28]}
18. b5 {[%clk 0:07:52.8]} 18... b6 {[%clk 0:07:17.1]} 19. Qc2 {[%clk 0:07:52.7]}
19... Nh5 {[%clk 0:07:03.7]} 20. Bxh5 {[%clk 0:07:09.6]} 20... gxh5 {[%clk
0:07:05.6]} 21. Qe2 {[%clk 0:07:06.8]} 21... h4 {[%clk 0:07:02.8]} 22. Nd5
{[%clk 0:07:07]} 22... Bf6 {[%clk 0:06:51.5]} 23. Qh5 {[%clk 0:06:55]} 23... Qg7
{[%clk 0:06:50.8]} 24. Kh2 {[%clk 0:06:48.8]} 24... Rg8 {[%clk 0:06:50.1]} 25.
Rg1 {[%clk 0:06:48.1]} 25... Qf8 {[%clk 0:06:32.7]} 26. Nxf6+ {[%clk 0:06:07.2]}
26... Rxf6 {[%clk 0:06:32.3]} 27. Qxh4 {[%clk 0:06:08.4]} 27... Rfg6 {[%clk
0:06:20.3]} 28. Rc1 {[%clk 0:06:01.6]} 28... Qf7 {[%clk 0:06:18.9]} 29. f4
{[%clk 0:04:16]} 29... exf4 {[%clk 0:06:13.8]} 30. Qxf4 {[%clk 0:03:49.4]} 30...
Qg7 {[%clk 0:06:02.9]} 31. g4 {[%clk 0:03:28]} 31... Rf8 {[%clk 0:06:02.6]} 32.
Qg3 {[%clk 0:03:23.4]} 32... Qe7 {[%clk 0:05:50]} 33. e5 {[%clk 0:03:22]} 33...
dxe5 {[%clk 0:05:40.4]} 34. c5 {[%clk 0:03:23]} 34... Rgf6 {[%clk 0:05:38.2]}
35. Qxe5 {[%clk 0:03:15.4]} 35... Qf7 {[%clk 0:05:30.8]} 36. Rg2 {[%clk
0:03:07.1]} 36... Bd5 {[%clk 0:05:12.4]} 37. Rd2 {[%clk 0:02:57.9]} 37... Re8
{[%clk 0:04:21.7]} 38. Qxd5 {[%clk 0:02:40.4]} 38... Qxd5 {[%clk 0:03:52.7]} 39.
Rxd5 {[%clk 0:02:39.5]} 39... Rxe3 {[%clk 0:03:54.1]} 40. cxb6 {[%clk
0:01:53.7]} 40... cxb6 {[%clk 0:03:44.2]} 41. Rc7+ {[%clk 0:01:52]} 41... Kg6
{[%clk 0:03:43]} 42. Rc6 {[%clk 0:01:09.2]} 42... Rxc6 {[%clk 0:03:36.2]} 43.
bxc6 {[%clk 0:01:09.8]} 43... Rc3 {[%clk 0:03:36.7]} 44. Rd6+ {[%clk 0:01:02.8]}
44... Kg5 {[%clk 0:03:36.6]} 45. a4 {[%clk 0:01:02.7]} 45... Rc4 {[%clk
0:03:23]} 46. c7 {[%clk 0:00:44.9]} 46... Rxc7 {[%clk 0:03:14.3]} 47. Rxb6
{[%clk 0:00:45.8]} 47... Rc2+ {[%clk 0:03:12.7]} 48. Kg3 {[%clk 0:00:47]} 48...
Rc3+ {[%clk 0:03:13.6]} 49. Kg2 {[%clk 0:00:47.2]} 49... Rc2+ {[%clk 0:03:14.5]}
50. Kg1 {[%clk 0:00:44.9]} 50... Ra2 {[%clk 0:02:43.8]} 51. Rb5+ {[%clk
0:00:44.6]} 51... Kh4 {[%clk 0:02:44.7]} 52. Rh5+ {[%clk 0:00:42.9]} 52... Kg3
{[%clk 0:02:45.6]} 53. Kf1 {[%clk 0:00:44.5]} 53... Rxa4 {[%clk 0:02:45.8]} 54.
Rxh6 {[%clk 0:00:45.6]} 54... Ra2 {[%clk 0:02:37.3]} 55. Ke1 {[%clk 0:00:45.1]}
55... a4 {[%clk 0:02:36.8]} 56. Kd1 {[%clk 0:00:46.6]} 56... a3 {[%clk
0:02:37.6]} 57. Kc1 {[%clk 0:00:43]} 57... Rg2 {[%clk 0:02:27.2]} 58. Kb1 {[%clk
0:00:43.2]} 58... a2+ {[%clk 0:02:06.8]} 59. Ka1 {[%clk 0:00:43.7]} 59... Kf4
{[%clk 0:01:30.6]} 60. Rh5 {[%clk 0:00:44.1]} 60... Rh2 {[%clk 0:01:28]} 61. g5
{[%clk 0:00:38.9]} 61... Rg2 {[%clk 0:00:49]} 62. h4 {[%clk 0:00:39.1]} 62...
Ke3 {[%clk 0:00:41.7]} 63. Rh6 {[%clk 0:00:37.1]} 63... Kd3 {[%clk 0:00:42.9]}
64. Ra6 {[%clk 0:00:31.3]} 64... Rh2 {[%clk 0:00:38.2]} 65. Rxa2 {[%clk
0:00:18.5]} 65... Rh1+ {[%clk 0:00:38.6]} 66. Kb2 {[%clk 0:00:19.3]} 66... Rxh4
{[%clk 0:00:39.9]} 67. Ra3+ {[%clk 0:00:19.3]} 67... Ke4 {[%clk 0:00:40.5]} 68.
Ra4+ {[%clk 0:00:20.3]} 68... Kf5 {[%clk 0:00:40.2]} 69. Rxh4 {[%clk 0:00:22.2]}
69... Kxg5 {[%clk 0:00:40.8]} 70. Re4 {[%clk 0:00:23]} 1-0